[Event "CCT Chessable Masters Play-In 2025"]
[Site "Online"]
[Date "2025.02.17"]
[Round "2.67"]
[White "Vetoshko, Volodymyr"]
[Black "Kravtsiv, Martyn"]
[Result "0-1"]
[ECO "C47"]
[WhiteElo "2529"]
[BlackElo "2598"]
[PlyCount "138"]
[EventDate "2025.02.13"]
[EventType "swiss"]
[EventCountry "NET"]
[TimeControl "600"]
[WhiteClock "0:00:13"]
[BlackClock "0:00:05"]

1. e4 {[%emt 0:00:01]} e5 {[%emt 0:00:02]} 2. Nf3 {[%emt 0:00:01]} Nc6 {[%emt 0:00:02]} 3. Nc3 {[%emt 0:00:00]} Nf6 {[%emt 0:00:02]} 4. a3 {[%emt 0:00:01]} d5 {[%emt 0:00:11]} 5. Bb5 {[%emt 0:00:02]} Nxe4 {[%emt 0:00:03]} 6. Qe2 {[%emt 0:00:01]} Qd6 {[%emt 0:00:19]} 7. Nxe4 {[%emt 0:00:01]} dxe4 {[%emt 0:00:01]} 8. Qxe4 {[%emt 0:00:00]} Bd7 {[%emt 0:00:03]} 9. d4 {[%emt 0:00:01]} f5 {[%emt 0:01:22]} 10. Qe2 {[%emt 0:00:04]} e4 {[%emt 0:00:03]} 11. Bxc6 {[%emt 0:00:04]} Bxc6 {[%emt 0:00:07]} 12. Ne5 {[%emt 0:00:01]} O-O-O {[%emt 0:00:49]} 13. Nf7 {[%emt 0:00:13]} Qxd4 {[%emt 0:01:07]} 14. Nxh8 {[%emt 0:00:55]} Bb5 {[%emt 0:00:09]} 15. c4 {[%emt 0:01:18]} Bxc4 {[%emt 0:00:46]} 16. Be3 {[%emt 0:00:03]} Qd5 {[%emt 0:00:07]} 17. Qc2 {[%emt 0:00:34]} Bd6 {[%emt 0:00:03]} 18. Rc1 {[%emt 0:00:51]} Bd3 {[%emt 0:00:11]} 19. Qa4 {[%emt 0:00:04]} f4 {[%emt 0:01:05]} 20. Bxa7 {[%emt 0:00:36]} e3 {[%emt 0:00:44]} 21. f3 {[%emt 0:00:25]} Rxh8 {[%emt 0:01:25]} 22. Qd4 {[%emt 0:00:14]} Qa5+ {[%emt 0:00:31]} 23. Qc3 {[%emt 0:01:07]} Qxc3+ {[%emt 0:00:04]} 24. Rxc3 {[%emt 0:00:01]} Ba6 {[%emt 0:00:01]} 25. Bd4 {[%emt 0:00:15]} Rd8 {[%emt 0:00:01]} 26. Bxg7 {[%emt 0:00:11]} Rg8 {[%emt 0:00:02]} 27. Bf6 {[%emt 0:00:52]} Rxg2 {[%emt 0:00:01]} 28. Kd1 {[%emt 0:00:01]} Kd7 {[%emt 0:00:03]} 29. Kc1 {[%emt 0:00:04]} Ke6 {[%emt 0:00:01]} 30. Bd4 {[%emt 0:00:03]} b6 {[%emt 0:00:01]} 31. h4 {[%emt 0:00:29]} h5 {[%emt 0:00:03]} 32. Kb1 {[%emt 0:00:14]} Kf5 {[%emt 0:00:00]} 33. Bxe3 {[%emt 0:00:07]} fxe3 {[%emt 0:00:02]} 34. Rxe3 {[%emt 0:00:00]} Be5 {[%emt 0:00:00]} 35. Rb3 {[%emt 0:00:05]} Bc4 {[%emt 0:00:02]} 36. Rb4 {[%emt 0:00:00]} b5 {[%emt 0:00:01]} 37. f4 {[%emt 0:00:09]} Bf6 {[%emt 0:00:01]} 38. Rc1 {[%emt 0:00:16]} c5 {[%emt 0:00:01]} 39. Rcxc4 {[%emt 0:00:01]} bxc4 {[%emt 0:00:01]} 40. Rxc4 {[%emt 0:00:00]} Rxb2+ {[%emt 0:00:02]} 41. Kc1 {[%emt 0:00:00]} Rb5 {[%emt 0:00:00]} 42. a4 {[%emt 0:00:02]} Ra5 {[%emt 0:00:01]} 43. Kc2 {[%emt 0:00:00]} Bd4 {[%emt 0:00:00]} 44. Kb3 {[%emt 0:00:02]} Kxf4 {[%emt 0:00:01]} 45. Rc2 {[%emt 0:00:00]} Ke5 {[%emt 0:00:01]} 46. Rg2 {[%emt 0:00:01]} Ra7 {[%emt 0:00:01]} 47. Rg5+ {[%emt 0:00:01]} Ke4 {[%emt 0:00:00]} 48. Rxh5 {[%emt 0:00:01]} Kd3 {[%emt 0:00:01]} 49. a5 {[%emt 0:00:05]} c4+ {[%emt 0:00:00]} 50. Ka4 {[%emt 0:00:01]} c3 {[%emt 0:00:00]} 51. Rf5 {[%emt 0:00:05]} c2 {[%emt 0:00:00]} 52. Rf1 {[%emt 0:00:00]} Rc7 {[%emt 0:00:01]} 53. Kb5 {[%emt 0:00:01]} c1=Q {[%emt 0:00:01]} 54. Rxc1 {[%emt 0:00:00]} Rxc1 {[%emt 0:00:00]} 55. a6 {[%emt 0:00:00]} Rb1+ {[%emt 0:00:01]} 56. Kc6 {[%emt 0:00:00]} Rb6+ {[%emt 0:00:01]} 57. Kd7 {[%emt 0:00:01]} Rxa6 {[%emt 0:00:00]} 58. Ke7 {[%emt 0:00:00]} Rh6 {[%emt 0:00:01]} 59. Kd7 {[%emt 0:00:00]} Rxh4 {[%emt 0:00:00]} 60. Kd6 {[%emt 0:00:01]} Ke4 {[%emt 0:00:00]} 61. Ke6 {[%emt 0:00:00]} Rh5 {[%emt 0:00:01]} 62. Kd6 {[%emt 0:00:00]} Be5+ {[%emt 0:00:00]} 63. Kc6 {[%emt 0:00:01]} Rh6+ {[%emt 0:00:01]} 64. Kb5 {[%emt 0:00:00]} Bd4 {[%emt 0:00:00]} 65. Kc4 {[%emt 0:00:00]} Rc6+ {[%emt 0:00:01]} 66. Kb5 {[%emt 0:00:00]} Kd5 {[%emt 0:00:01]} 67. Kb4 {[%emt 0:00:00]} Rb6+ {[%emt 0:00:01]} 68. Ka5 {[%emt 0:00:00]} Kc4 {[%emt 0:00:01]} 69. Ka4 {[%emt 0:00:00]} Ra6# {[%emt 0:00:00]} 0-1

[Event "CCT Chessable Masters Play-In 2025"]
[Site "Online"]
[Date "2025.02.17"]
[Round "2.68"]
[White "Van Wely, Loek"]
[Black "Warmerdam, Max"]
[Result "0-1"]
[ECO "D66"]
[WhiteElo "2454"]
[BlackElo "2638"]
[PlyCount "154"]
[EventDate "2025.02.13"]
[EventType "swiss"]
[EventCountry "NET"]
[TimeControl "600"]
[WhiteClock "0:01:53"]
[BlackClock "0:00:19"]

1. d4 {[%emt 0:00:01]} d5 {[%emt 0:00:02]} 2. c4 {[%emt 0:00:01]} e6 {[%emt 0:00:01]} 3. Nf3 {[%emt 0:00:02]} Nf6 {[%emt 0:00:00]} 4. Nc3 {[%emt 0:00:04]} Nbd7 {[%emt 0:00:02]} 5. Bg5 {[%emt 0:00:06]} h6 {[%emt 0:00:01]} 6. Bh4 {[%emt 0:00:01]} Be7 {[%emt 0:00:00]} 7. e3 {[%emt 0:00:03]} O-O {[%emt 0:00:01]} 8. Rc1 {[%emt 0:00:03]} c6 {[%emt 0:00:01]} 9. Bd3 {[%emt 0:00:04]} dxc4 {[%emt 0:00:02]} 10. Bxc4 {[%emt 0:00:02]} b5 {[%emt 0:00:00]} 11. Bd3 {[%emt 0:00:02]} Bb7 {[%emt 0:00:00]} 12. O-O {[%emt 0:00:08]} Rc8 {[%emt 0:00:03]} 13. Qe2 {[%emt 0:00:06]} b4 {[%emt 0:00:17]} 14. Na4 {[%emt 0:00:23]} c5 {[%emt 0:00:22]} 15. dxc5 {[%emt 0:00:32]} Nxc5 {[%emt 0:00:19]} 16. Nxc5 {[%emt 0:00:02]} Rxc5 {[%emt 0:00:03]} 17. Rxc5 {[%emt 0:00:03]} Bxc5 {[%emt 0:00:00]} 18. Rd1 {[%emt 0:00:01]} Qe7 {[%emt 0:00:17]} 19. Ne5 {[%emt 0:00:02]} g5 {[%emt 0:00:34]} 20. Bg3 {[%emt 0:00:05]} Rd8 {[%emt 0:00:05]} 21. h4 {[%emt 0:00:11]} Kg7 {[%emt 0:00:31]} 22. hxg5 {[%emt 0:00:09]} hxg5 {[%emt 0:00:01]} 23. Bc2 {[%emt 0:00:10]} Rxd1+ {[%emt 0:00:18]} 24. Qxd1 {[%emt 0:00:01]} Ba8 {[%emt 0:01:55]} 25. Nf3 {[%emt 0:00:44]} Ne4 {[%emt 0:00:10]} 26. Be5+ {[%emt 0:00:36]} f6 {[%emt 0:02:42]} 27. Bxe4 {[%emt 0:00:05]} Bxe4 {[%emt 0:00:01]} 28. Nxg5 {[%emt 0:00:02]} Bf5 {[%emt 0:00:00]} 29. Bd4 {[%emt 0:00:05]} Bxd4 {[%emt 0:00:10]} 30. Qxd4 {[%emt 0:00:04]} e5 {[%emt 0:00:03]} 31. Qd5 {[%emt 0:00:18]} fxg5 {[%emt 0:00:02]} 32. e4 {[%emt 0:00:02]} Bg6 {[%emt 0:00:05]} 33. a3 {[%emt 0:00:02]} bxa3 {[%emt 0:00:02]} 34. bxa3 {[%emt 0:00:01]} g4 {[%emt 0:00:05]} 35. a4 {[%emt 0:00:05]} Kf6 {[%emt 0:00:03]} 36. a5 {[%emt 0:00:04]} Bf7 {[%emt 0:00:03]} 37. Qd2 {[%emt 0:00:03]} Qe6 {[%emt 0:00:07]} 38. Qd8+ {[%emt 0:00:12]} Kg6 {[%emt 0:00:02]} 39. Qc7 {[%emt 0:00:04]} a6 {[%emt 0:00:01]} 40. Qb6 {[%emt 0:00:12]} Kg7 {[%emt 0:00:04]} 41. Qd8 {[%emt 0:00:05]} Be8 {[%emt 0:00:02]} 42. Qd2 {[%emt 0:00:06]} Bg6 {[%emt 0:00:02]} 43. Qb4 {[%emt 0:00:03]} Kh6 {[%emt 0:00:07]} 44. Qd2+ {[%emt 0:00:03]} Kh5 {[%emt 0:00:01]} 45. Qb4 {[%emt 0:00:05]} Qc6 {[%emt 0:00:04]} 46. Qb8 {[%emt 0:00:30]} Qc1+ {[%emt 0:00:03]} 47. Kh2 {[%emt 0:00:01]} Qf4+ {[%emt 0:00:00]} 48. Kg1 {[%emt 0:00:01]} Bxe4 {[%emt 0:00:05]} 49. Qh8+ {[%emt 0:00:03]} Kg5 {[%emt 0:00:02]} 50. Qd8+ {[%emt 0:00:04]} Qf6 {[%emt 0:00:01]} 51. Qd2+ {[%emt 0:00:02]} Kg6 {[%emt 0:00:01]} 52. Qe2 {[%emt 0:00:02]} Bf5 {[%emt 0:00:01]} 53. Qe3 {[%emt 0:00:02]} Qd6 {[%emt 0:00:01]} 54. Qa7 {[%emt 0:00:06]} Bd3 {[%emt 0:00:03]} 55. Qa8 {[%emt 0:00:07]} Bb5 {[%emt 0:00:03]} 56. Qg8+ {[%emt 0:00:03]} Kf5 {[%emt 0:00:01]} 57. Qh7+ {[%emt 0:00:04]} Qg6 {[%emt 0:00:03]} 58. Qc7 {[%emt 0:00:06]} Ke4 {[%emt 0:00:01]} 59. Qc2+ {[%emt 0:00:04]} Bd3 {[%emt 0:00:00]} 60. Qa4+ {[%emt 0:00:01]} Kd5 {[%emt 0:00:02]} 61. Qb3+ {[%emt 0:00:04]} Kc5 {[%emt 0:00:02]} 62. Qb8 {[%emt 0:00:05]} e4 {[%emt 0:00:02]} 63. Qb3 {[%emt 0:00:05]} Qc6 {[%emt 0:00:01]} 64. Qb2 {[%emt 0:00:08]} Qb5 {[%emt 0:00:01]} 65. Qc3+ {[%emt 0:00:02]} Qc4 {[%emt 0:00:01]} 66. Qd2 {[%emt 0:00:05]} Kb5 {[%emt 0:00:01]} 67. Qg5+ {[%emt 0:00:02]} Qc5 {[%emt 0:00:00]} 68. Qxg4 {[%emt 0:00:07]} Kxa5 {[%emt 0:00:01]} 69. Qd7 {[%emt 0:00:05]} Kb4 {[%emt 0:00:01]} 70. Qb7+ {[%emt 0:00:03]} Kc3 {[%emt 0:00:02]} 71. Qg7+ {[%emt 0:00:04]} Kc2 {[%emt 0:00:01]} 72. g4 {[%emt 0:00:15]} a5 {[%emt 0:00:01]} 73. g5 {[%emt 0:00:01]} a4 {[%emt 0:00:00]} 74. g6 {[%emt 0:00:02]} a3 {[%emt 0:00:01]} 75. Qf6 {[%emt 0:00:05]} e3 {[%emt 0:00:04]} 76. fxe3 {[%emt 0:00:08]} Qxe3+ {[%emt 0:00:01]} 77. Kh2 {[%emt 0:00:07]} Qh6+ {[%emt 0:00:03]} 0-1

[Event "CCT Chessable Masters Play-In 2025"]
[Site "Online"]
[Date "2025.02.17"]
[Round "2.69"]
[White "Alonso Rosell, Alvar"]
[Black "Kourkoulos-Arditis, Stamatis"]
[Result "1-0"]
[ECO "D05"]
[WhiteElo "2535"]
[BlackElo "2580"]
[PlyCount "83"]
[EventDate "2025.02.13"]
[EventType "swiss"]
[EventCountry "NET"]
[TimeControl "600"]
[WhiteClock "0:01:20"]
[BlackClock "0:00:21"]

1. d4 {[%emt 0:00:01]} d5 {[%emt 0:00:21]} 2. Nf3 {[%emt 0:00:01]} e6 {[%emt 0:00:01]} 3. e3 {[%emt 0:00:01]} Nf6 {[%emt 0:00:02]} 4. Bd3 {[%emt 0:00:01]} b6 {[%emt 0:00:02]} 5. b3 {[%emt 0:00:01]} Bb7 {[%emt 0:00:02]} 6. Bb2 {[%emt 0:00:02]} Bd6 {[%emt 0:00:00]} 7. Nbd2 {[%emt 0:00:01]} O-O {[%emt 0:00:02]} 8. Ne5 {[%emt 0:00:03]} c5 {[%emt 0:00:03]} 9. Qf3 {[%emt 0:00:08]} Nc6 {[%emt 0:00:16]} 10. a3 {[%emt 0:00:14]} Ne7 {[%emt 0:00:42]} 11. Qh3 {[%emt 0:00:19]} Ng6 {[%emt 0:00:21]} 12. f4 {[%emt 0:00:48]} cxd4 {[%emt 0:00:06]} 13. Bxd4 {[%emt 0:00:05]} Bxe5 {[%emt 0:00:26]} 14. fxe5 {[%emt 0:00:29]} Ne4 {[%emt 0:00:03]} 15. Bxe4 {[%emt 0:00:57]} dxe4 {[%emt 0:00:02]} 16. Nc4 {[%emt 0:00:00]} Rc8 {[%emt 0:02:02]} 17. O-O-O {[%emt 0:00:17]} Bd5 {[%emt 0:00:06]} 18. Nd6 {[%emt 0:00:19]} Bxb3 {[%emt 0:00:07]} 19. Nxc8 {[%emt 0:00:52]} Qxc8 {[%emt 0:00:01]} 20. Rd2 {[%emt 0:00:01]} Bd5 {[%emt 0:00:01]} 21. Qg4 {[%emt 0:00:24]} Qa6 {[%emt 0:00:07]} 22. Bb2 {[%emt 0:00:05]} Ne7 {[%emt 0:00:03]} 23. Qf4 {[%emt 0:00:40]} b5 {[%emt 0:00:16]} 24. Rf1 {[%emt 0:00:06]} Qa4 {[%emt 0:00:33]} 25. h4 {[%emt 0:00:06]} b4 {[%emt 0:00:08]} 26. axb4 {[%emt 0:00:40]} Qxb4 {[%emt 0:00:00]} 27. h5 {[%emt 0:00:02]} h6 {[%emt 0:00:02]} 28. g4 {[%emt 0:00:03]} a5 {[%emt 0:01:09]} 29. g5 {[%emt 0:00:02]} a4 {[%emt 0:00:07]} 30. Rd4 {[%emt 0:00:08]} Qc5 {[%emt 0:00:15]} 31. gxh6 {[%emt 0:00:18]} Nf5 {[%emt 0:00:06]} 32. Qg5 {[%emt 0:00:30]} Rc8 {[%emt 0:00:41]} 33. Rd2 {[%emt 0:00:02]} a3 {[%emt 0:00:29]} 34. Bd4 {[%emt 0:00:05]} a2 {[%emt 0:00:23]} 35. Rxf5 {[%emt 0:00:13]} Qa3+ {[%emt 0:00:02]} 36. Kd1 {[%emt 0:00:01]} a1=Q+ {[%emt 0:00:00]} 37. Bxa1 {[%emt 0:00:01]} Qxa1+ {[%emt 0:00:01]} 38. Ke2 {[%emt 0:00:00]} Bc4+ {[%emt 0:00:00]} 39. Kf2 {[%emt 0:00:07]} Qf1+ {[%emt 0:00:01]} 40. Kg3 {[%emt 0:00:01]} Qe1+ {[%emt 0:00:13]} 41. Rdf2 {[%emt 0:00:14]} g6 {[%emt 0:00:17]} 42. Rxf7 {[%emt 0:00:12]} 1-0

[Event "CCT Chessable Masters Play-In 2025"]
[Site "Online"]
[Date "2025.02.17"]
[Round "2.70"]
[White "Vakhidov, Jakhongir"]
[Black "Nigmatov, Ortik"]
[Result "0-1"]
[ECO "A25"]
[WhiteElo "2546"]
[BlackElo "2505"]
[PlyCount "52"]
[EventDate "2025.02.13"]
[EventType "swiss"]
[EventCountry "NET"]
[TimeControl "600"]
[WhiteClock "0:00:47"]
[BlackClock "0:06:44"]

1. c4 {[%emt 0:00:09]} e5 {[%emt 0:00:14]} 2. d3 {[%emt 0:00:05]} g6 {[%emt 0:00:03]} 3. Nc3 {[%emt 0:00:03]} Bg7 {[%emt 0:00:01]} 4. g3 {[%emt 0:00:02]} d6 {[%emt 0:00:09]} 5. Bg2 {[%emt 0:00:02]} Nc6 {[%emt 0:00:01]} 6. e3 {[%emt 0:00:10]} f5 {[%emt 0:00:03]} 7. Rb1 {[%emt 0:00:03]} a5 {[%emt 0:00:02]} 8. a3 {[%emt 0:00:02]} Nf6 {[%emt 0:00:03]} 9. b4 {[%emt 0:00:03]} axb4 {[%emt 0:00:02]} 10. axb4 {[%emt 0:00:00]} O-O {[%emt 0:00:01]} 11. Nge2 {[%emt 0:00:03]} Ne7 {[%emt 0:00:18]} 12. O-O {[%emt 0:01:36]} g5 {[%emt 0:00:04]} 13. f4 {[%emt 0:00:06]} h6 {[%emt 0:00:01]} 14. e4 {[%emt 0:01:50]} gxf4 {[%emt 0:00:02]} 15. gxf4 {[%emt 0:00:01]} Nh5 {[%emt 0:00:00]} 16. fxe5 {[%emt 0:01:23]} dxe5 {[%emt 0:00:03]} 17. exf5 {[%emt 0:00:02]} Nxf5 {[%emt 0:00:03]} 18. Ne4 {[%emt 0:00:07]} Nh4 {[%emt 0:00:07]} 19. Rxf8+ {[%emt 0:01:30]} Qxf8 {[%emt 0:00:08]} 20. Qf1 {[%emt 0:00:30]} Qd8 {[%emt 0:00:31]} 21. N2g3 {[%emt 0:00:44]} Ra2 {[%emt 0:00:02]} 22. Rb2 {[%emt 0:00:07]} Rxb2 {[%emt 0:00:56]} 23. Bxb2 {[%emt 0:00:00]} Nf4 {[%emt 0:00:00]} 24. Bf3 {[%emt 0:00:02]} Qxd3 {[%emt 0:00:15]} 25. Be2 {[%emt 0:00:25]} Qe3+ {[%emt 0:00:03]} 26. Kh1 {[%emt 0:00:08]} Bh3 {[%emt 0:00:04]} 0-1

[Event "CCT Chessable Masters Play-In 2025"]
[Site "Online"]
[Date "2025.02.17"]
[Round "2.71"]
[White "Harsha Bharathakoti"]
[Black "Bjerre, Jonas Buhl"]
[Result "0-1"]
[ECO "D38"]
[WhiteElo "2537"]
[BlackElo "2640"]
[PlyCount "106"]
[EventDate "2025.02.13"]
[EventType "swiss"]
[EventCountry "NET"]
[TimeControl "600"]
[WhiteClock "0:00:24"]
[BlackClock "0:00:42"]

1. d4 {[%emt 0:00:21]} Nf6 {[%emt 0:00:02]} 2. c4 {[%emt 0:00:01]} e6 {[%emt 0:00:02]} 3. Nc3 {[%emt 0:00:00]} Bb4 {[%emt 0:00:01]} 4. Nf3 {[%emt 0:00:00]} d5 {[%emt 0:00:03]} 5. Qa4+ {[%emt 0:00:10]} Nc6 {[%emt 0:00:02]} 6. Bd2 {[%emt 0:00:02]} O-O {[%emt 0:00:04]} 7. a3 {[%emt 0:00:03]} Bxc3 {[%emt 0:00:04]} 8. Bxc3 {[%emt 0:00:00]} Ne4 {[%emt 0:00:02]} 9. Qc2 {[%emt 0:00:04]} Nxc3 {[%emt 0:00:44]} 10. Qxc3 {[%emt 0:00:01]} b6 {[%emt 0:00:23]} 11. e3 {[%emt 0:00:43]} dxc4 {[%emt 0:00:10]} 12. Bxc4 {[%emt 0:00:01]} Bb7 {[%emt 0:00:01]} 13. O-O {[%emt 0:00:02]} Ne7 {[%emt 0:00:08]} 14. Be2 {[%emt 0:00:08]} Rc8 {[%emt 0:00:05]} 15. Rfd1 {[%emt 0:00:02]} Qd5 {[%emt 0:00:12]} 16. Rac1 {[%emt 0:00:08]} Rfd8 {[%emt 0:00:03]} 17. b4 {[%emt 0:00:09]} h6 {[%emt 0:00:11]} 18. h3 {[%emt 0:00:02]} Nf5 {[%emt 0:00:15]} 19. Bc4 {[%emt 0:00:09]} Qd6 {[%emt 0:00:23]} 20. Be2 {[%emt 0:01:12]} Qd5 {[%emt 0:00:42]} 21. Qc2 {[%emt 0:01:55]} Nd6 {[%emt 0:01:02]} 22. Ne1 {[%emt 0:00:01]} Qg5 {[%emt 0:01:14]} 23. Bf3 {[%emt 0:00:02]} Bd5 {[%emt 0:00:06]} 24. Qe2 {[%emt 0:01:07]} a5 {[%emt 0:00:18]} 25. bxa5 {[%emt 0:00:08]} Bxf3 {[%emt 0:00:02]} 26. Nxf3 {[%emt 0:00:06]} Qxa5 {[%emt 0:00:01]} 27. Rd3 {[%emt 0:00:12]} c5 {[%emt 0:00:22]} 28. dxc5 {[%emt 0:00:03]} bxc5 {[%emt 0:00:01]} 29. Qd2 {[%emt 0:00:26]} Qa8 {[%emt 0:00:47]} 30. Rd1 {[%emt 0:00:13]} Nb7 {[%emt 0:00:01]} 31. Qc3 {[%emt 0:00:07]} Rxd3 {[%emt 0:00:04]} 32. Rxd3 {[%emt 0:00:01]} c4 {[%emt 0:00:10]} 33. Rd4 {[%emt 0:00:09]} Qa5 {[%emt 0:00:02]} 34. Qxa5 {[%emt 0:00:24]} Nxa5 {[%emt 0:00:00]} 35. Rd2 {[%emt 0:00:23]} Rb8 {[%emt 0:00:37]} 36. Rc2 {[%emt 0:00:01]} Rb1+ {[%emt 0:00:03]} 37. Kh2 {[%emt 0:00:01]} Rb3 {[%emt 0:00:03]} 38. Nd2 {[%emt 0:00:01]} Rb6 {[%emt 0:00:15]} 39. Kg3 {[%emt 0:00:22]} Kf8 {[%emt 0:00:07]} 40. Kf3 {[%emt 0:00:03]} Ke7 {[%emt 0:00:02]} 41. Ke2 {[%emt 0:00:04]} Rc6 {[%emt 0:00:05]} 42. Ne4 {[%emt 0:00:04]} f5 {[%emt 0:00:02]} 43. Nd2 {[%emt 0:00:05]} Kd6 {[%emt 0:00:02]} 44. Nf3 {[%emt 0:00:07]} Rb6 {[%emt 0:00:02]} 45. Nd4 {[%emt 0:00:02]} g6 {[%emt 0:00:02]} 46. f4 {[%emt 0:00:02]} e5 {[%emt 0:00:01]} 47. fxe5+ {[%emt 0:00:02]} Kxe5 {[%emt 0:00:00]} 48. g4 {[%emt 0:00:00]} fxg4 {[%emt 0:00:01]} 49. hxg4 {[%emt 0:00:00]} Ke4 {[%emt 0:00:01]} 50. Nf3 {[%emt 0:00:02]} h5 {[%emt 0:00:06]} 51. gxh5 {[%emt 0:00:01]} gxh5 {[%emt 0:00:00]} 52. Nd2+ {[%emt 0:00:00]} Kd5 {[%emt 0:00:00]} 53. Nb1 {[%emt 0:00:04]} Rxb1 {[%emt 0:00:02]} 0-1

[Event "CCT Chessable Masters Play-In 2025"]
[Site "Online"]
[Date "2025.02.17"]
[Round "2.72"]
[White "Henriquez Villagra, Cristobal"]
[Black "Kobalia, Mikhail"]
[Result "0-1"]
[ECO "B80"]
[WhiteElo "2597"]
[BlackElo "2538"]
[PlyCount "50"]
[EventDate "2025.02.13"]
[EventType "swiss"]
[EventCountry "NET"]
[TimeControl "600"]
[WhiteClock "0:02:38"]
[BlackClock "0:06:45"]

1. e4 {[%emt 0:00:01]} c5 {[%emt 0:00:02]} 2. Nf3 {[%emt 0:00:01]} e6 {[%emt 0:00:01]} 3. d4 {[%emt 0:00:02]} cxd4 {[%emt 0:00:01]} 4. Nxd4 {[%emt 0:00:00]} Nc6 {[%emt 0:00:01]} 5. Nc3 {[%emt 0:00:07]} a6 {[%emt 0:00:01]} 6. g3 {[%emt 0:00:24]} d6 {[%emt 0:00:02]} 7. Bg2 {[%emt 0:00:01]} Bd7 {[%emt 0:00:01]} 8. O-O {[%emt 0:00:05]} Be7 {[%emt 0:00:01]} 9. Nde2 {[%emt 0:00:35]} Nf6 {[%emt 0:00:02]} 10. b3 {[%emt 0:00:11]} O-O {[%emt 0:00:03]} 11. Bb2 {[%emt 0:00:00]} b5 {[%emt 0:00:06]} 12. a3 {[%emt 0:00:01]} Rc8 {[%emt 0:00:01]} 13. Qd2 {[%emt 0:00:06]} Qb6 {[%emt 0:00:03]} 14. h3 {[%emt 0:00:02]} Rcd8 {[%emt 0:00:14]} 15. Rad1 {[%emt 0:00:11]} Bc8 {[%emt 0:00:03]} 16. Kh2 {[%emt 0:00:05]} a5 {[%emt 0:00:12]} 17. Nd4 {[%emt 0:00:25]} Nxd4 {[%emt 0:01:28]} 18. Qxd4 {[%emt 0:00:01]} Qb8 {[%emt 0:00:01]} 19. Rfe1 {[%emt 0:01:00]} Ba6 {[%emt 0:00:03]} 20. Rd2 {[%emt 0:00:09]} Rc8 {[%emt 0:00:03]} 21. Kg1 {[%emt 0:00:19]} Rc5 {[%emt 0:00:04]} 22. Nd5 {[%emt 0:01:57]} exd5 {[%emt 0:00:36]} 23. exd5 {[%emt 0:00:01]} Re8 {[%emt 0:00:04]} 24. Rde2 {[%emt 0:00:58]} Bf8 {[%emt 0:00:02]} 25. Rxe8 {[%emt 0:00:40]} Nxe8 {[%emt 0:00:00]} 0-1

[Event "CCT Chessable Masters Play-In 2025"]
[Site "Online"]
[Date "2025.02.17"]
[Round "2.73"]
[White "Lie, Kjetil A."]
[Black "Bilguun, Sumiya"]
[Result "0-1"]
[ECO "A37"]
[WhiteElo "2489"]
[BlackElo "2460"]
[PlyCount "96"]
[EventDate "2025.02.13"]
[EventType "swiss"]
[EventCountry "NET"]
[TimeControl "600"]
[WhiteClock "0:00:40"]
[BlackClock "0:00:13"]

1. c4 {[%emt 0:00:01]} c5 {[%emt 0:00:41]} 2. Nc3 {[%emt 0:00:03]} g6 {[%emt 0:00:17]} 3. g3 {[%emt 0:00:02]} Bg7 {[%emt 0:00:03]} 4. Bg2 {[%emt 0:00:01]} Nc6 {[%emt 0:00:11]} 5. a3 {[%emt 0:00:01]} a5 {[%emt 0:00:02]} 6. Nf3 {[%emt 0:00:08]} e5 {[%emt 0:00:04]} 7. d4 {[%emt 0:00:21]} cxd4 {[%emt 0:00:27]} 8. Nb5 {[%emt 0:00:01]} d6 {[%emt 0:00:13]} 9. e3 {[%emt 0:00:08]} Nf6 {[%emt 0:00:47]} 10. exd4 {[%emt 0:00:04]} e4 {[%emt 0:00:04]} 11. Ng5 {[%emt 0:00:28]} O-O {[%emt 0:00:04]} 12. O-O {[%emt 0:00:02]} Bf5 {[%emt 0:00:13]} 13. Re1 {[%emt 0:00:22]} Re8 {[%emt 0:00:49]} 14. h3 {[%emt 0:02:36]} h5 {[%emt 0:02:24]} 15. Bf4 {[%emt 0:00:04]} Bf8 {[%emt 0:00:01]} 16. c5 {[%emt 0:01:28]} Nd5 {[%emt 0:00:31]} 17. Qb3 {[%emt 0:00:17]} dxc5 {[%emt 0:00:05]} 18. dxc5 {[%emt 0:00:09]} a4 {[%emt 0:00:17]} 19. Qa2 {[%emt 0:00:01]} Ne5 {[%emt 0:00:35]} 20. Red1 {[%emt 0:00:35]} Nxf4 {[%emt 0:00:55]} 21. Rxd8 {[%emt 0:00:23]} Ne2+ {[%emt 0:00:02]} 22. Kf1 {[%emt 0:00:00]} Raxd8 {[%emt 0:00:02]} 23. Kxe2 {[%emt 0:00:01]} Bh6 {[%emt 0:00:15]} 24. h4 {[%emt 0:00:08]} Bxg5 {[%emt 0:00:02]} 25. hxg5 {[%emt 0:00:01]} Be6 {[%emt 0:00:01]} 26. Qb1 {[%emt 0:00:05]} Bc4+ {[%emt 0:00:02]} 27. Ke3 {[%emt 0:00:28]} Bxb5 {[%emt 0:00:02]} 28. Bf1 {[%emt 0:00:02]} Ng4+ {[%emt 0:00:01]} 29. Kf4 {[%emt 0:00:01]} Rd5 {[%emt 0:00:06]} 30. Qxe4 {[%emt 0:00:21]} Rxe4+ {[%emt 0:00:02]} 31. Kxe4 {[%emt 0:00:00]} Bc6 {[%emt 0:00:01]} 32. Bb5 {[%emt 0:00:30]} Nxf2+ {[%emt 0:00:14]} 33. Ke3 {[%emt 0:00:02]} Ng4+ {[%emt 0:00:01]} 34. Ke4 {[%emt 0:00:01]} Re5+ {[%emt 0:00:01]} 35. Kd4 {[%emt 0:00:01]} Bxb5 {[%emt 0:00:01]} 36. Kc3 {[%emt 0:00:02]} Bc6 {[%emt 0:00:01]} 37. Kb4 {[%emt 0:00:00]} Re4+ {[%emt 0:00:01]} 38. Ka5 {[%emt 0:00:01]} Ne5 {[%emt 0:00:00]} 39. Kb6 {[%emt 0:00:01]} Nc4+ {[%emt 0:00:01]} 40. Kc7 {[%emt 0:00:01]} Re7+ {[%emt 0:00:01]} 41. Kb8 {[%emt 0:00:01]} Ne5 {[%emt 0:00:02]} 42. Rd1 {[%emt 0:00:01]} Nd7+ {[%emt 0:00:01]} 43. Kc8 {[%emt 0:00:01]} Nxc5 {[%emt 0:00:01]} 44. Rc1 {[%emt 0:00:03]} Ne6 {[%emt 0:00:01]} 45. Kb8 {[%emt 0:00:01]} Re8+ {[%emt 0:00:01]} 46. Ka7 {[%emt 0:00:00]} Kf8 {[%emt 0:00:00]} 47. Kb6 {[%emt 0:00:01]} Ke7 {[%emt 0:00:00]} 48. Rd1 {[%emt 0:00:11]} Ra8 {[%emt 0:00:01]} 0-1